bitfinex/quotes_SOLUSD_20250821
["timestamp","ask_amount","ask_price","bid_price","bid_amount"]
[1755782294818,0.06,184.56,184.55,297.47641892]
[1755782295419,0.06,184.62,184.59,10.0]
[1755782295729,0.06,184.63,184.62,13.59559401]
[1755782296053,0.06,184.63,184.62,61.4181103]
[1755782296347,0.06,184.63,184.62,62.0881103]
[1755782296947,0.06,184.63,184.62,72.88211392]
[1755782298356,0.06,184.64,184.62,72.88211392]
[1755782298560,0.06,184.64,184.63,19.31645718]
[1755782299063,0.06,184.64,184.63,24.73269506]
[1755782299655,0.06,184.64,184.63,26.90277506]
[1755782299857,0.06,184.68,184.66,26.0]
[1755782300027,0.06,184.68,184.66,73.82239896]
[1755782300364,0.06,184.68,184.66,74.54239896]
[1755782300574,0.06,184.68,184.66,69.54153579]
[1755782300777,0.06,184.68,184.66,154.28239896]
[1755782300983,0.06,184.68,184.66,153.74086317]
[1755782301283,0.06,184.68,184.66,159.15622112]
[1755782302045,0.06,184.68,184.66,110.74086317]
[1755782302355,0.06,184.68,184.66,155.17094317]
[1755782302959,0.72,184.67,184.66,150.17008]
[1755782303168,0.06,184.67,184.66,153.00086317]
[1755782303782,0.06,184.67,184.66,159.13622112]
[1755782303985,0.06,184.67,184.66,153.72086317]
[1755782304145,0.06,184.67,184.66,153.00086317]
[1755782304652,0.06,184.67,184.66,110.74086317]
[1755782304983,0.06,184.67,184.66,159.13622112]
[1755782305366,0.06,184.67,184.66,175.43622112]
[1755782306276,0.06,184.67,184.66,177.60618312]
[1755782306481,0.06,184.71,184.7,79.56]
[1755782306827,0.06,184.71,184.7,126.82086317]
[1755782307154,0.06,184.71,184.7,134.40465733]
[1755782307349,0.06,184.71,184.7,135.12465733]
[1755782307857,0.06,184.71,184.7,266.68465733]
[1755782308288,0.06,184.71,184.7,267.40465733]
[1755782308678,0.06,184.71,184.7,266.68465733]
[1755782308900,0.06,184.71,184.7,134.38465733]
[1755782309091,0.06,184.71,184.7,86.73047217]
[1755782309488,0.06,184.71,184.7,123.969609]
[1755782309680,0.06,184.71,184.7,126.80086317]
[1755782310675,0.72,184.71,184.7,126.80086317]
[1755782311308,0.72,184.71,184.7,79.56]
[1755782311601,0.72,184.71,184.7,121.8]
[1755782311845,0.06,184.71,184.7,126.80086317]
[1755782312103,0.72,184.71,184.7,126.80086317]
[1755782312314,0.06,184.71,184.7,126.80086317]
[1755782312679,0.72,184.71,184.7,126.80086317]
[1755782312872,0.72,184.71,184.7,121.8]
[1755782313084,0.06,184.71,184.7,126.80086317]
[1755782314286,0.72,184.71,184.7,79.56]
[1755782314505,0.72,184.71,184.7,121.8]
[1755782315101,0.72,184.71,184.7,79.56]
[1755782315303,0.72,184.71,184.7,121.8]
[1755782315499,0.72,184.71,184.7,126.80086317]
[1755782315708,0.06,184.71,184.7,126.80086317]
[1755782316711,0.72,184.71,184.7,79.56]
[1755782316910,5.72086317,184.71,184.7,121.8]
[1755782317724,5.72086317,184.71,184.7,79.56]
[1755782317930,5.72086317,184.71,184.7,121.8]
[1755782318226,5.72086317,184.71,184.68,42.24]
[1755782318420,5.66086317,184.7,184.67,42.24]
[1755782318724,0.66,184.69,184.67,42.24]
[1755782319926,0.66,184.68,184.67,42.24]
[1755782321033,5.66086317,184.68,184.66,79.59]
[1755782321208,5.00086317,184.67,184.66,79.59]
[1755782321524,5.66086317,184.67,184.66,0.03]
[1755782322012,19.25645718,184.67,184.66,0.03]
[1755782323519,45.25645718,184.67,184.66,0.03]
[1755782325930,48.8594342,184.67,184.66,0.03]
[1755782326714,13.59559401,184.64,184.62,0.03]
[1755782326908,5.00086317,184.63,184.62,0.03]
[1755782327431,8.51705452,184.63,184.62,0.03]
[1755782328031,7.82705452,184.63,184.62,0.03]
[1755782328415,8.51705452,184.63,184.62,0.03]
[1755782328610,7.82705452,184.63,184.62,0.03]
[1755782328822,2.82619135,184.63,184.62,0.72]
[1755782329023,5.00086317,184.65,184.62,0.03]
[1755782329227,0.69,184.66,184.63,0.69]
[1755782329228,2.8252351,184.66,184.63,0.69]
[1755782329424,2.8252351,184.66,184.63,79.56]
[1755782329634,2.8252351,184.66,184.63,80.25]
[1755782332117,2.8252351,184.66,184.64,0.69]
[1755782332323,0.06,184.7,184.65,5.00086317]
[1755782332520,2.88466728,184.7,184.65,84.56086317]
[1755782332727,2.88466728,184.7,184.66,5.69086317]
[1755782332942,2.88466728,184.7,184.67,0.69]
[1755782333947,5.00086317,184.68,184.64,42.24]
[1755782334238,5.00086317,184.68,184.64,42.93]
[1755782335143,5.69086317,184.69,184.64,47.93086317]
[1755782335323,0.69,184.69,184.64,47.93086317]
[1755782335524,7.88553045,184.7,184.65,5.69086317]
[1755782335726,7.88553045,184.7,184.66,0.69]
[1755782335930,7.88553045,184.7,184.66,80.49]
[1755782336128,2.88466728,184.7,184.66,79.8]
[1755782336329,7.88553045,184.7,184.67,0.69]
[1755782336528,8.57553045,184.7,184.66,79.8]
[1755782336731,5.00086317,184.68,184.66,79.8]
[1755782336958,2.88466728,184.7,184.66,79.8]
[1755782336959,5.00086317,184.67,184.66,79.8]
[1755782337528,5.69086317,184.67,184.66,79.8]
[1755782338952,5.69086317,184.67,184.62,122.76]
[1755782339246,13.59559401,184.68,184.63,0.69]
[1755782339557,5.00086317,184.67,184.63,0.69]
[1755782339739,5.00086317,184.67,184.64,0.69]
[1755782340146,7.88553045,184.7,184.65,5.69086317]
[1755782340327,7.88553045,184.7,184.66,0.69]
[1755782340532,2.88466728,184.7,184.67,0.69]
[1755782340947,2.88466728,184.7,184.68,0.69]
[1755782341249,2.88466728,184.7,184.66,5.00086317]
[1755782341549,8.57553045,184.7,184.66,0.69]
[1755782341752,8.57553045,184.7,184.65,42.24]
[1755782341956,5.00086317,184.68,184.65,79.8]
[1755782342259,5.00086317,184.67,184.65,80.49]
[1755782342431,5.00086317,184.69,184.65,79.8]
[1755782342636,5.00086317,184.69,184.66,0.69]
[1755782342971,5.69086317,184.69,184.65,79.8]
[1755782343138,5.00086317,184.66,184.65,79.8]
[1755782343337,5.69086317,184.66,184.62,0.03]
[1755782343553,5.00086317,184.63,184.62,0.03]
[1755782343961,19.28645718,184.63,184.62,0.03]
[1755782345149,5.00086317,184.63,184.62,0.03]
[1755782346369,8.1500905,184.63,184.62,0.03]
[1755782346938,8.8400905,184.63,184.62,0.03]
[1755782347139,8.1500905,184.63,184.62,0.03]
[1755782347934,8.1500905,184.64,184.62,0.72]
[1755782348958,42.93,184.67,184.63,0.69]
[1755782348959,8.1500905,184.65,184.63,0.69]
[1755782349148,8.1500905,184.66,184.63,0.69]
[1755782349763,8.1500905,184.65,184.62,0.03]
[1755782349962,8.1500905,184.63,184.62,0.03]
[1755782350753,14.28559401,184.67,184.62,0.03]
[1755782351061,8.1500905,184.64,184.62,0.03]
[1755782351260,8.8400905,184.63,184.62,0.03]
[1755782351843,22.43568451,184.63,184.62,0.03]
[1755782352670,26.05460317,184.63,184.62,0.03]
[1755782352875,34.29726198,184.63,184.62,0.03]
[1755782353963,34.29726198,184.63,184.61,0.03]
[1755782353964,13.59559401,184.62,184.61,0.03]
[1755782354175,26.05460317,184.62,184.61,0.03]
[1755782355169,68.29460317,184.62,184.61,0.03]
[1755782355850,25.36460317,184.62,184.61,0.03]
[1755782356190,26.05460317,184.62,184.61,0.03]
[1755782357587,8.1500905,184.62,184.61,0.03]
[1755782359688,8.8500905,184.62,184.61,0.03]
[1755782359890,22.44568451,184.62,184.61,0.03]
[1755782360269,21.74568451,184.62,184.61,0.03]
[1755782360686,26.06627153,184.62,184.61,0.03]
[1755782360875,25.36627153,184.62,184.61,0.03]
[1755782361469,21.74568451,184.62,184.61,0.03]
[1755782362076,25.36695372,184.62,184.61,0.03]
[1755782362277,26.06695372,184.62,184.61,0.03]
[1755782362600,25.36798568,184.62,184.61,0.03]
[1755782362972,26.12798568,184.62,184.61,0.03]
[1755782363896,21.80568451,184.62,184.61,0.03]
[1755782364082,25.42821591,184.62,184.61,0.03]
[1755782364278,0.06,184.62,184.61,0.03]
[1755782364495,8.2100905,184.62,184.61,0.03]
[1755782365286,8.2100905,184.62,184.61,0.69]
[1755782366000,0.06,184.62,184.61,8.8400905]
[1755782366305,0.06,184.62,184.61,88.6400905]
[1755782366598,0.06,184.62,184.61,8.8400905]
[1755782367174,0.06,184.62,184.61,0.69]
[1755782367573,0.06,184.62,184.61,8.8400905]
[1755782368280,0.06,184.62,184.61,0.69]
[1755782370074,0.06,184.62,184.61,5.69062397]
[1755782370509,0.06,184.62,184.61,0.69]
[1755782371409,0.06,184.62,184.61,80.49]
[1755782378687,0.06,184.62,184.61,79.83]
[1755782382207,0.06,184.62,184.61,80.49]
[1755782382808,0.06,184.62,184.61,85.49062397]
[1755782384203,0.06,184.62,184.61,79.83]
[1755782384400,0.06,184.62,184.61,122.73]
[1755782384906,0.06,184.62,184.61,122.07]
[1755782387021,0.06,184.62,184.61,0.03]
[1755782387227,5.72062397,184.62,184.61,0.03]
[1755782387529,22.9412409,184.62,184.61,0.03]
[1755782391625,27.94186487,184.62,184.61,0.03]
[1755782391926,13.59559401,184.61,184.59,0.03]
[1755782392126,35.78784616,184.6,184.59,0.03]
[1755782392507,36.44784616,184.6,184.59,0.03]
[1755782392914,31.44722219,184.6,184.59,0.03]
[1755782393129,26.91247746,184.6,184.59,0.03]
[1755782393327,22.2212409,184.6,184.59,0.03]
[1755782393829,8.62564689,184.6,184.59,0.03]
[1755782394127,5.00062397,184.6,184.59,0.03]
[1755782394320,8.62564689,184.6,184.59,0.03]
[1755782394512,5.00062397,184.6,184.59,0.03]
[1755782394912,8.62564689,184.61,184.59,0.73]
[1755782395228,5.00062397,184.6,184.59,0.73]
[1755782396519,5.00062397,184.6,184.59,0.03]
[1755782396722,9.28564689,184.6,184.59,0.03]
[1755782396919,5.66062397,184.6,184.59,0.03]
[1755782397231,9.28564689,184.6,184.59,0.03]
[1755782397434,5.66062397,184.6,184.59,0.03]
[1755782397616,9.28564689,184.6,184.59,0.03]
[1755782397806,5.66062397,184.6,184.59,0.03]
[1755782398010,9.28564689,184.6,184.59,0.03]
[1755782398263,5.66062397,184.6,184.59,0.03]
[1755782398733,5.00062397,184.6,184.59,0.73]
[1755782399037,5.00062397,184.6,184.59,0.03]
[1755782399244,3.62502292,184.61,184.59,0.73]
[1755782399419,3.62502292,184.61,184.6,0.7]
[1755782399621,5.06062397,184.62,184.6,0.7]
[1755782399831,0.06,184.62,184.59,0.03]
[1755782400026,0.06,184.62,184.61,0.7]
[1755782400217,5.06062397,184.62,184.59,0.03]
[1755782400534,5.00062397,184.61,184.59,0.03]
[1755782400740,5.00062397,184.6,184.59,0.03]
[1755782400912,0.06,184.62,184.59,0.73]
[1755782401113,5.00062397,184.6,184.59,0.03]
[1755782401341,5.00062397,184.6,184.59,0.73]
[1755782401641,5.00062397,184.6,184.59,0.03]
[1755782401840,5.00062397,184.6,184.59,0.73]
[1755782402052,5.00062397,184.6,184.59,0.03]
[1755782402641,5.00062397,184.61,184.59,0.73]
[1755782404037,5.00062397,184.61,184.59,0.03]
[1755782404260,5.00062397,184.61,184.6,0.7]
[1755782404829,5.00062397,184.61,184.59,0.03]
[1755782405030,5.00062397,184.6,184.59,0.73]
[1755782405243,5.00062397,184.6,184.59,0.03]
[1755782405841,3.68502292,184.62,184.59,0.03]
[1755782406042,5.00062397,184.6,184.59,0.03]
[1755782406257,3.68502292,184.62,184.59,0.73]
[1755782406463,0.06,184.62,184.6,5.70062397]
[1755782406634,0.06,184.62,184.61,0.7]
[1755782406838,0.06,184.62,184.61,85.50062397]
[1755782410165,0.06,184.62,184.61,80.5]
[1755782410638,0.06,184.62,184.61,122.74]
[1755782411447,5.06062397,184.62,184.61,122.04]
[1755782411633,5.06062397,184.62,184.61,79.8]
[1755782411835,0.06,184.62,184.61,79.8]
[1755782412036,0.06,184.62,184.59,122.07]
[1755782412370,0.06,184.62,184.59,122.77]
[1755782412547,0.06,184.62,184.6,0.7]
[1755782413065,0.06,184.62,184.61,0.7]
[1755782413300,0.06,184.62,184.61,42.94]
[1755782413474,0.06,184.62,184.61,42.97]
[1755782414271,5.06062397,184.62,184.61,42.27]
[1755782414567,0.06,184.62,184.61,42.27]
[1755782415438,5.72062397,184.62,184.61,0.03]
[1755782415848,5.06062397,184.62,184.61,0.03]
[1755782416553,0.06,184.62,184.61,0.03]
[1755782420651,5.06062397,184.62,184.61,0.03]
[1755782421075,5.74062397,184.62,184.61,0.03]
[1755782421586,0.06,184.62,184.61,0.03]
[1755782424683,0.06,184.62,184.61,79.83]
[1755782425060,5.74062397,184.62,184.61,79.83]
[1755782428302,5.06062397,184.62,184.61,79.83]
[1755782429091,8.68564689,184.62,184.61,79.83]
[1755782429275,5.06062397,184.62,184.61,79.83]
[1755782429477,8.68564689,184.62,184.61,79.83]
[1755782429680,5.06062397,184.62,184.61,79.83]
[1755782429991,8.68564689,184.62,184.61,79.83]
[1755782430285,5.06062397,184.62,184.61,79.83]
[1755782430488,3.68502292,184.62,184.61,79.83]
[1755782430704,5.74062397,184.62,184.61,0.03]
[1755782430908,9.36564689,184.62,184.61,0.03]
[1755782431189,5.74062397,184.62,184.61,0.03]
[1755782431506,9.36564689,184.62,184.61,0.03]
[1755782431682,5.74062397,184.62,184.61,0.03]
[1755782431882,3.68502292,184.62,184.61,0.03]
[1755782432908,0.06,184.62,184.61,0.72]
[1755782433212,0.06,184.62,184.61,0.03]
[1755782435901,3.68502292,184.62,184.61,0.03]
[1755782436091,0.06,184.62,184.61,0.03]
[1755782436512,0.06,184.62,184.61,79.83]
[1755782436693,0.06,184.62,184.61,80.52]
[1755782437489,0.06,184.62,184.61,122.74]
[1755782439300,0.06,184.62,184.61,133.15744862]
[1755782443506,0.06,184.62,184.61,135.32799962]
[1755782444116,0.06,184.62,184.61,165.22359363]
[1755782445417,0.74,184.71,184.66,79.56]
[1755782445731,0.74,184.71,184.67,47.22062397]
[1755782445894,0.74,184.7,184.67,47.22062397]
[1755782446221,0.68,184.69,184.67,47.22062397]
[1755782447236,0.06,184.7,184.67,47.22062397]
[1755782447529,0.75,184.7,184.67,47.22062397]
[1755782447941,0.06,184.7,184.68,5.00062397]
[1755782448109,0.06,184.7,184.69,42.2]
[1755782448309,0.06,184.7,184.69,47.87062397]
[1755782448632,0.06,184.7,184.69,127.43062397]
[1755782449834,0.06,184.7,184.69,122.43]
[1755782450023,0.06,184.7,184.69,127.43062397]
[1755782450425,0.06,184.7,184.69,126.76062397]
[1755782451035,0.06,184.7,184.69,127.43062397]
[1755782452446,0.06,184.7,184.69,132.84510228]
[1755782453015,0.06,184.7,184.69,162.74069629]
[1755782455337,0.06,184.7,184.69,146.44069629]
[1755782456336,0.06,184.7,184.69,278.74069629]
[1755782457471,0.06,184.71,184.7,13.59559401]
[1755782457750,0.06,184.71,184.7,99.36763649]
[1755782460246,0.75,184.79,184.75,79.32]
[1755782460457,0.75,184.77,184.75,126.50062397]
[1755782460620,0.75,184.77,184.75,121.5]
[1755782460818,0.75,184.77,184.75,126.50062397]
[1755782460819,0.06,184.77,184.75,126.50062397]
[1755782461061,0.06,184.77,184.75,127.17062397]
[1755782461551,0.06,184.77,184.75,126.50062397]
[1755782461932,0.06,184.77,184.75,127.17062397]
[1755782462129,0.06,184.77,184.75,132.58334386]
[1755782462623,0.06,184.77,184.75,134.75224686]
[1755782463025,0.06,184.77,184.75,92.57224686]
[1755782463243,0.06,184.77,184.75,134.75224686]
[1755782463756,0.06,184.77,184.75,267.05224686]
[1755782464129,0.06,184.77,184.75,267.03224686]
[1755782465153,0.06,184.77,184.75,224.87224686]
[1755782465357,0.06,184.77,184.75,267.03224686]
[1755782466046,0.06,184.79,184.77,79.06]
[1755782466255,0.06,184.79,184.77,126.22062397]
[1755782466753,0.75,184.78,184.77,126.22062397]
[1755782468824,0.06,184.78,184.77,126.22062397]
[1755782469021,0.75,184.78,184.77,126.22062397]
[1755782469534,0.75,184.78,184.77,84.06062397]
[1755782469738,0.75,184.78,184.77,121.22]
[1755782470630,0.06,184.78,184.77,126.22062397]
[1755782470833,0.75,184.78,184.77,121.22]
[1755782471047,0.06,184.78,184.77,126.22062397]
[1755782471436,0.06,184.78,184.77,131.63275797]
[1755782471649,0.06,184.78,184.77,132.30275797]
[1755782472233,0.06,184.78,184.77,131.63275797]
[1755782472557,0.75,184.78,184.77,126.22062397]
[1755782472733,0.75,184.78,184.77,121.22]
[1755782473134,0.75,184.78,184.77,121.2]
[1755782473342,0.75,184.78,184.77,79.06]
[1755782473537,0.75,184.78,184.77,121.2]
[1755782473755,0.06,184.78,184.77,126.20062397]
[1755782474066,0.06,184.78,184.77,131.61275797]
[1755782474576,0.06,184.78,184.77,132.28275797]
[1755782474939,0.75,184.78,184.77,121.2]
[1755782475866,0.75,184.78,184.77,79.06]
[1755782476160,0.75,184.78,184.77,121.2]
[1755782476847,5.75062397,184.78,184.76,42.14]
[1755782477160,5.65062397,184.77,184.75,42.14]
[1755782477371,0.06,184.78,184.75,42.14]
[1755782477372,5.65062397,184.76,184.75,121.2]
[1755782477542,5.00062397,184.76,184.75,121.2]
[1755782477878,5.65062397,184.76,184.75,121.2]
[1755782478044,0.65,184.76,184.75,121.2]
[1755782481173,5.65062397,184.76,184.75,121.2]
[1755782481549,5.65062397,184.76,184.74,42.14]
[1755782481766,5.65062397,184.75,184.73,42.14]
[1755782481955,5.00062397,184.74,184.72,42.14]
[1755782482158,0.65,184.73,184.72,42.14]
[1755782482471,0.65,184.73,184.72,121.2]
[1755782483455,5.65062397,184.73,184.72,121.2]
[1755782484783,5.65062397,184.73,184.72,79.06]
[1755782485584,5.65062397,184.73,184.71,0.03]
[1755782485759,5.65062397,184.72,184.71,0.03]
[1755782485959,0.65,184.72,184.71,0.03]
[1755782486377,5.65062397,184.72,184.71,0.03]
[1755782487052,0.65,184.72,184.71,0.03]
[1755782487462,5.65062397,184.72,184.71,0.03]
[1755782487680,5.00062397,184.72,184.71,0.03]
[1755782488074,0.65,184.74,184.71,0.03]
[1755782488414,0.65,184.72,184.71,0.03]
[1755782488687,26.71,184.78,184.72,0.65]
[1755782488858,3.62715514,184.77,184.73,47.14062397]
[1755782489060,0.65,184.77,184.73,47.79062397]
[1755782489269,0.65,184.77,184.74,5.00062397]
[1755782489475,0.06,184.78,184.75,42.14]
[1755782489785,0.06,184.78,184.75,47.14062397]
[1755782490284,0.06,184.78,184.72,5.41349168]
[1755782490285,5.00062397,184.76,184.72,79.06]
[1755782490581,5.00062397,184.74,184.73,42.16]
[1755782490884,5.00062397,184.74,184.72,42.16]
[1755782491271,0.65,184.74,184.72,42.16]
[1755782491465,0.65,184.73,184.72,42.16]
[1755782491667,5.00062397,184.75,184.72,42.16]
[1755782491871,4.27715514,184.77,184.72,42.16]
[1755782492088,0.65,184.76,184.72,47.81062397]
[1755782492311,5.71062397,184.78,184.73,5.65062397]
[1755782492591,5.65062397,184.77,184.74,42.14]
[1755782492770,5.65062397,184.76,184.73,42.14]
[1755782492974,5.65062397,184.75,184.73,42.14]
[1755782493206,5.65062397,184.74,184.71,79.09]
[1755782493366,5.00062397,184.73,184.72,42.14]
[1755782493685,5.00062397,184.74,184.72,42.14]
[1755782494074,5.65062397,184.74,184.72,42.14]
[1755782494484,0.65,184.74,184.72,42.14]
[1755782494668,5.65062397,184.74,184.72,42.14]
[1755782494870,5.65062397,184.73,184.71,0.03]
[1755782495068,5.00062397,184.72,184.71,0.03]
[1755782495997,5.65062397,184.73,184.71,0.03]
[1755782496173,5.00062397,184.72,184.71,0.03]
[1755782497583,0.65,184.73,184.71,0.03]
[1755782497789,5.65062397,184.73,184.71,0.03]
[1755782498172,5.00062397,184.73,184.71,0.03]
[1755782499378,5.00062397,184.75,184.71,0.03]
[1755782499586,5.00062397,184.75,184.72,0.65]
[1755782499885,8.62777911,184.76,184.72,0.65]
[1755782500087,5.00062397,184.76,184.72,0.65]
[1755782500690,5.00062397,184.76,184.73,0.65]
[1755782500899,5.65062397,184.76,184.72,42.14]
[1755782501110,5.65062397,184.76,184.72,42.79]
[1755782501294,5.65062397,184.76,184.72,42.14]
[1755782501591,5.65062397,184.75,184.72,42.14]
[1755782502170,5.00062397,184.75,184.72,42.14]
[1755782502376,5.00062397,184.76,184.73,0.65]
[1755782503004,5.00062397,184.76,184.72,42.14]
[1755782503381,5.00062397,184.76,184.73,0.65]
[1755782504507,5.65062397,184.76,184.73,79.06]
[1755782505706,5.00062397,184.76,184.73,79.71]
[1755782509006,0.06,184.77,184.73,79.71]
[1755782509007,0.06,184.77,184.75,5.00062397]
[1755782509190,0.06,184.77,184.76,5.00062397]
[1755782509390,0.06,184.77,184.76,5.68062397]
[1755782509586,0.06,184.77,184.76,84.74062397]
[1755782510417,0.06,184.77,184.76,90.1530509]
[1755782511287,0.06,184.77,184.76,132.2930509]
[1755782513805,0.06,184.77,184.76,137.29367487]
[1755782516795,0.06,184.77,184.76,150.88926888]
[1755782518602,0.06,184.77,184.76,137.29367487]
[1755782519323,0.06,184.81,184.8,78.82]
[1755782519544,0.74,184.81,184.8,120.94]
[1755782519699,0.06,184.81,184.8,125.94062397]
[1755782520091,0.06,184.81,184.8,126.62062397]
[1755782520291,0.74,184.81,184.8,125.94062397]
[1755782520595,0.74,184.81,184.8,120.94]
[1755782520790,0.74,184.81,184.8,78.82]
[1755782521016,0.74,184.81,184.8,120.94]
[1755782521212,0.06,184.81,184.8,125.94062397]
[1755782521416,0.06,184.81,184.8,126.62062397]
[1755782521590,0.06,184.81,184.8,158.03187938]
[1755782521792,0.06,184.81,184.8,277.92747339]
[1755782523648,2.82132482,184.94,184.8,277.92747339]
[1755782523649,2.82132482,184.94,184.84,39.59559401]
[1755782523825,0.68,184.92,184.87,26.0]
[1755782524012,0.2,184.96,184.88,48.2088092]
[1755782524214,0.68,184.95,184.88,48.2088092]
[1755782524618,0.68,184.95,184.88,42.8]
[1755782525026,5.68062397,184.95,184.88,42.12]
[1755782525249,0.68,184.94,184.88,42.12]
[1755782525423,5.68062397,184.94,184.88,47.12062397]
[1755782525630,0.68,184.93,184.89,5.00062397]
[1755782525918,0.68,184.92,184.89,5.00062397]
[1755782526450,0.68,184.92,184.88,42.12]
[1755782526834,0.68,184.92,184.88,47.12062397]
[1755782527244,5.68062397,184.92,184.84,26.68]
[1755782527443,0.68,184.91,184.87,5.00062397]
[1755782527753,0.68,184.91,184.87,47.12062397]
[1755782528354,0.68,184.9,184.88,5.00062397]
[1755782529038,0.68,184.89,184.87,42.12]
[1755782529340,5.00062397,184.92,184.87,125.94062397]
[1755782529545,0.68,184.89,184.87,125.94062397]
[1755782529719,0.68,184.88,184.87,120.94]
[1755782530447,0.68,184.88,184.87,78.82]
[1755782530630,5.68062397,184.88,184.85,42.1]
[1755782530829,13.59559401,184.93,184.82,31.00062397]
[1755782530830,5.00062397,184.86,184.82,31.00062397]
[1755782531150,0.68,184.87,184.79,42.1]
[1755782531151,5.00062397,184.83,184.79,42.1]
[1755782531538,0.68,184.82,184.79,42.1]
[1755782531729,5.00062397,184.83,184.79,42.1]
[1755782531925,0.68,184.81,184.79,42.1]
[1755782532142,5.68062397,184.8,184.76,0.03]
[1755782532352,5.00062397,184.79,184.76,0.03]
[1755782532550,5.68062397,184.79,184.76,0.03]
[1755782532754,0.68,184.78,184.76,0.03]
[1755782533056,5.00062397,184.8,184.76,0.03]
[1755782533230,5.00062397,184.81,184.76,5.71062397]
[1755782533753,0.68,184.8,184.76,5.03062397]
[1755782533951,0.68,184.82,184.76,0.03]
[1755782534138,5.68062397,184.82,184.77,5.00062397]
[1755782534460,5.00062397,184.83,184.78,5.68062397]
[1755782534759,0.68,184.82,184.78,5.68062397]
[1755782535258,18.59621798,184.84,184.79,5.00062397]
[1755782535463,5.68062397,184.82,184.77,5.00062397]
[1755782535755,0.68,184.81,184.77,5.00062397]
[1755782535959,5.00062397,184.82,184.77,5.00062397]
[1755782535960,5.00062397,184.82,184.77,5.68062397]
[1755782536159,0.68,184.82,184.78,5.00062397]
[1755782536460,0.06,184.88,184.81,5.00062397]
[1755782536644,5.74062397,184.88,184.83,5.00062397]
[1755782536847,0.68,184.87,184.83,5.00062397]
[1755782537030,0.68,184.86,184.82,5.00062397]
[1755782537234,0.68,184.86,184.79,68.1]
[1755782537235,5.00062397,184.83,184.78,83.82062397]
[1755782537437,0.68,184.82,184.78,83.82062397]
[1755782537668,5.00062397,184.83,184.78,5.00062397]
[1755782537844,0.68,184.82,184.78,5.00062397]
[1755782538040,0.68,184.81,184.77,42.32]
[1755782538276,0.68,184.8,184.77,47.32062397]
[1755782538570,5.68062397,184.82,184.77,47.32062397]
[1755782538741,5.00062397,184.82,184.77,47.32062397]
[1755782538942,0.68,184.81,184.77,47.32062397]
[1755782539859,5.00062397,184.82,184.77,47.32062397]
[1755782540175,0.06,184.83,184.8,5.00062397]
[1755782540558,0.06,184.83,184.8,5.66062397]
[1755782540874,0.06,184.83,184.81,5.66062397]
[1755782541169,0.06,184.83,184.81,5.00062397]
[1755782542246,0.06,184.83,184.8,5.00062397]
[1755782543267,0.06,184.83,184.78,0.66]
[1755782543470,0.06,184.83,184.82,5.00062397]
[1755782543686,0.06,184.83,184.82,47.96062397]
[1755782543848,0.06,184.83,184.82,73.96062397]
[1755782544373,0.06,184.83,184.82,81.53960881]
[1755782545775,0.06,184.83,184.82,55.53960881]
[1755782547082,0.06,184.87,184.85,26.0]
[1755782547255,0.06,184.87,184.86,52.36124794]
[1755782547453,0.06,184.87,184.86,52.44124794]
[1755782547657,0.06,184.87,184.86,53.10124794]